{"text_format":"1","workbook":"xlsx","n_sheets":6,"sheets":["Bestelformulier","Totaal","Factuur","Pakbon","Prijslijst","Gewicht"],"not_rendered":{"charts":0,"images":2,"macros":1,"external_links":0,"defined_names":1,"comments":0,"pivot_tables":0},"unopened":[],"bounds":{"document_bytes":16777216,"sheet_cells":100000,"rows_first":2000,"rows_last":500,"rows_between":2000,"halvings":0,"cell_chars":16384,"cell_head_chars":4096},"cells_cut":0,"cells_raw":0,"read":"whole","date_system":"1900"}

{"sheet":"Bestelformulier","index":0,"n_rows":119,"n_cols":29,"rows_kept":119,"cut":false,"hidden":false,"merged":[[121,11,121,12],[50,10,50,13],[63,10,63,13],[102,2,102,3],[65,10,65,13],[77,10,77,13],[97,10,97,13],[54,10,54,13],[74,10,74,13],[80,10,80,13],[7,4,7,6],[8,4,8,6],[9,4,9,6],[10,4,10,6],[11,4,11,6],[32,10,32,13],[7,11,7,13],[8,11,8,13],[9,11,9,13],[10,11,10,13],[11,11,11,13]]}
[null,"Bestelformulier 2022",null,null,null,null,null,null,null,null,null,null,null,null,null,null,null,null,null,null,null,null,"Staffelprijzen"]
[null," Geldig tot 31 december 2022"]
[]
[null,"Geef op dit formulier je bestelling door. ",null,null,null,null,null,"Vul de","grijze","velden in.",null,null,null,null,null,null,null,null,null,null,null,null,"Hieronder staan alle staffelprijzen overzichtelijk weergegeven. "]
[null,"Vul per product het aantal in dat je wenst te bestellen. Je ziet direct de prijzen. "]
[]
[null,"Je gegevens"]
[null,"Naam organisatie",null,null,null,null,null,null,"Land",null,null,"Nederland"]
[null,"Contactpersoon",null,null,null,null,null,null,"E-mailadres"]
[null,"Adres",null,null,null,null,null,null,"Factuur e-mailadres"]
[null,"Postcode",null,null,null,null,null,null,"Telefoonnummer"]
[null,"Plaats",null,null,null,null,null,null,"Besteldatum",null,null,{"$f":"TODAY()","v":"2022-09-05"}]
[]
[]
[null,null,null,null,null,null,null,null,null,null,null,"Aantal","Prijs/stuk","Totaal prijs",null,null,null,"Gewicht",null,"Verkoop"]
[null,"Fiets- en wandelkaarten"]
[null,"Fietskaart West-Brabant",null,null,null,null,null,null,null,null,null,null,null,null,null,null,null,{"$f":"L17*Gewicht!B4","v":0},null,{"$f":"L17*Prijslijst!G4","v":0}]
[null,"Fietskaart Midden-Brabant",null,null,null,null,null,null,null,null,null,null,null,null,null,null,null,{"$f":"L18*Gewicht!B5","v":0},null,{"$f":"L18*Prijslijst!G5","v":0}]
[null,"Fietskaart Noordoost-Brabant",null,null,null,null,null,null,null,null,null,null,null,null,null,null,null,{"$f":"L19*Gewicht!B6","v":0},null,{"$f":"L19*Prijslijst!G6","v":0}]
[null,"Fietskaart Zuidoost-Brabant",null,null,null,null,null,null,null,null,null,null,null,null,null,null,null,{"$f":"L20*Gewicht!B7","v":0},null,{"$f":"L20*Prijslijst!G7","v":0}]
[null,"Wandelkaart Brabant West - o.a. Brabantse Wal en Bergen op Zoom",null,null,null,null,null,null,null,null,null,null,null,null,null,null,null,{"$f":"L21*Gewicht!B8","v":0},null,{"$f":"L21*Prijslijst!G10","v":0}]
[null,"Wandelkaart Brabant West - o.a. De Baronie en Breda",null,null,null,null,null,null,null,null,null,null,null,null,null,null,null,{"$f":"L22*Gewicht!B9","v":0},null,{"$f":"L22*Prijslijst!G11","v":0}]
[null,"Wandelkaart Brabant West - o.a. De Biesbosch en het Land van Heusden",null,null,null,null,null,null,null,null,null,null,null,null,null,null,null,{"$f":"L23*Gewicht!B10","v":0},null,{"$f":"L23*Prijslijst!G12","v":0}]
[null,"Wandelkaart Brabant Midden - o.a. Tilburg en Loonse en Drunense Duinen",null,null,null,null,null,null,null,null,null,null,null,null,null,null,null,{"$f":"L24*Gewicht!B11","v":0},null,{"$f":"L24*Prijslijst!G13","v":0}]
[null,"Wandelkaart Brabant Noordoost - o.a. 's-Hertogenbosch en De Maashorst",null,null,null,null,null,null,null,null,null,null,null,null,null,null,null,{"$f":"L25*Gewicht!B12","v":0},null,{"$f":"L25*Prijslijst!G14","v":0},null,null,"Fiets- en wandelkaarten (alle combinaties mogelijk) "]
[null,"Wandelkaart Brabant Noordoost - o.a. Land van Cuijk",null,null,null,null,null,null,null,null,null,null,null,null,null,null,null,{"$f":"L26*Gewicht!B13","v":0},null,{"$f":"L26*Prijslijst!G15","v":0},null,null,"Aantal",null,"Prijs /stuk"]
[null,"Wandelkaart Brabant Zuidoost - o.a. Eindhoven, Helmond en De Peel",null,null,null,null,null,null,null,null,null,null,null,null,null,null,null,{"$f":"L27*Gewicht!B14","v":0},null,{"$f":"L27*Prijslijst!G16","v":0},null,null,"25 t/m 99 stuks",null,3.9]
[null,"Wandelkaart Brabant Zuidoost - o.a. De Groote Heide en De Kempen",null,null,null,null,null,null,null,null,null,null,null,null,null,null,null,{"$f":"L28*Gewicht!B15","v":0},null,{"$f":"L28*Prijslijst!G17","v":0},null,null,"100 t/m 249 stuks",null,3.8]
[null,null,null,null,null,null,null,null,null,null,null,null,null,null,null,null,null,null,null,null,null,null,"250 t/m 499 stuks",null,3.65]
[null,"ACTIE Ik ontvang graag de gratis kaartendisplay",null,null,null,null,null,null,null,null,null,null,null,null,null,null,null,null,"ja","nee",null,null,"500 stuks of meer",null,3.4]
[]
[null,"Fiets- en wandelkaarten totaal",null,null,null,null,null,null,null,null,null,{"$f":"SUM(L17:L28)","v":0},{"$f":"_xlfn.IFS(L32<25,\"0\",AND(L32>=25,L32<=99),Prijslijst!B4,AND(L32>=100,L32<=249),Prijslijst!C4,AND(L32>=250,L32<=499),Prijslijst!D4,L32>500,Prijslijst!E4)","v":"0"},{"$f":"L32*M32","v":0}]
[null,null,null,null,null,null,null,null,null,null,"Minimale bestelhoeveelheid 25 stuks"]
[null,"Brabants Fietscafé "]
[null,"Als Brabants Fietscafé ontvang je 25% korting op je fiets- en wandelkaarten."]
[null,"Ben je Brabants Fietscafé?",null,null,null,null,null,null,null,null,null,"nee"]
[null,"Korting (wordt automatisch verrekend)",null,null,null,null,null,null,null,null,null,null,null,{"$f":"-_xlfn.IFS(L36=\"ja\",N32*R37,L36=\"nee\",0)","v":0},null,null,null,0.25,1]
[null,"Meer…"]
[]
[]
[null,"Liberation Route Brabant"]
[null,"Liberation Route Brabant fietsroute Bergen op Zoom",null,null,null,null,null,null,null,null,null,null,null,null,null,null,null,{"$f":"L42*Gewicht!B20","v":0},null,{"$f":"L42*Prijslijst!G20","v":0},null,null,"Liberation Route Brabant fietsroute",null,null,null,"Liberation Route Brabant giftbox"]
[null,"Liberation Route Brabant fietsroute Breda",null,null,null,null,null,null,null,null,null,null,null,null,null,null,null,{"$f":"L43*Gewicht!B21","v":0},null,{"$f":"L43*Prijslijst!G21","v":0},null,null,"Aantal",null,"Prijs /stuk",null,"Aantal",null,"Prijs /stuk"]
[null,"Liberation Route Brabant fietsroute Gilze-Rijen",null,null,null,null,null,null,null,null,null,null,null,null,null,null,null,{"$f":"L44*Gewicht!B22","v":0},null,{"$f":"L44*Prijslijst!G22","v":0},null,null,"10 t/m 24 stuks",null,2,null,"5 t/m 9 stuks",null,14]
[null,"Liberation Route Brabant fietsroute Vught",null,null,null,null,null,null,null,null,null,null,null,null,null,null,null,{"$f":"L45*Gewicht!B23","v":0},null,{"$f":"L45*Prijslijst!G23","v":0},null,null,"25 t/m 49 stuks",null,1.9,null,"10 stuks of meer",null,13.5]
[null,"Liberation Route Brabant fietsroute Son en Breugel",null,null,null,null,null,null,null,null,null,null,null,null,null,null,null,{"$f":"L46*Gewicht!B24","v":0},null,{"$f":"L46*Prijslijst!G24","v":0},null,null,"50 stuks of meer",null,1.8]
[null,"Liberation Route Brabant fietsroute Bergeijk",null,null,null,null,null,null,null,null,null,null,null,null,null,null,null,{"$f":"L47*Gewicht!B25","v":0},null,{"$f":"L47*Prijslijst!G25","v":0}]
[null,"Liberation Route Brabant fietsroute Landerd",null,null,null,null,null,null,null,null,null,null,null,null,null,null,null,{"$f":"L48*Gewicht!B26","v":0},null,{"$f":"L48*Prijslijst!G26","v":0},null,null,"Liberation Route Brabant wandelroute"]
[null,"Liberation Route Brabant fietsroute Asten",null,null,null,null,null,null,null,null,null,null,null,null,null,null,null,{"$f":"L49*Gewicht!B27","v":0},null,{"$f":"L49*Prijslijst!G27","v":0},null,null,"Aantal",null,"Prijs /stuk"]
[null,"Liberation Route Brabant totaal",null,null,null,null,null,null,null,null,null,{"$f":"SUM(L42:L49)","v":0},{"$f":"_xlfn.IFS(L50<10,0,AND(L50>=10,L50<=24),Prijslijst!B20,AND(L50>=25,L50<=49),Prijslijst!C20,L50>=50,Prijslijst!D20)","v":0},{"$f":"L50*M50","v":0},null,null,null,null,null,null,null,null,"10 t/m 24 stuks",null,2.8]
[null,null,null,null,null,null,null,null,null,null,"Minimale bestelhoeveelheid 10 stuks",null,null,null,null,null,null,null,null,null,null,null,"25 t/m 49 stuks",null,2.65]
[null,"Liberation Route Brabant giftbox",null,null,null,null,null,null,null,null,null,null,{"$f":"_xlfn.IFS(L52<5,0,AND(L52>=5,L52<=9),Prijslijst!B29,L52>=10,Prijslijst!C29)","v":0},{"$f":"L52*M52","v":0},null,null,null,{"$f":"L52*Gewicht!B29","v":0},null,{"$f":"L52*Prijslijst!G29","v":0},null,null,"50 stuks of meer",null,2.5]
[]
[null,"Liberation Route Brabant wandelroute, Operatie Market Garden",null,null,null,null,null,null,null,null,null,null,{"$f":"_xlfn.IFS(L54<10,0,AND(L54>=10,L54<=24),Prijslijst!B30,AND(L54>=25,L54<=49),Prijslijst!C30,L54>=50,Prijslijst!D30)","v":0},{"$f":"L54*M54","v":0},null,null,null,{"$f":"L54*Gewicht!B30","v":0},null,{"$f":"L54*Prijslijst!G30","v":0}]
[null,"Meer …",null,null,null,null,null,null,null,null,"Minimale bestelhoeveelheid 10 stuks"]
[]
[null,"Van Gogh fietsroute"]
[null,"Fietsroutekaart Van Gogh fietsroute Zundert",null,null,null,null,null,null,null,null,null,null,null,null,null,null,null,{"$f":"L58*Gewicht!B33","v":0},null,{"$f":"L58*Prijslijst!G33","v":0}]
[null,"Fietsroutekaart Van Gogh fietsroute Etten-Leur",null,null,null,null,null,null,null,null,null,null,null,null,null,null,null,{"$f":"L59*Gewicht!B34","v":0},null,{"$f":"L59*Prijslijst!G34","v":0},null,null,"Van Gogh fietsroute",null,null,null,"Van Gogh fietsroute cadeaubox"]
[null,"Fietsroutekaart Van Gogh fietsroute Breda/Tilburg",null,null,null,null,null,null,null,null,null,null,null,null,null,null,null,{"$f":"L60*Gewicht!B35","v":0},null,{"$f":"L60*Prijslijst!G35","v":0},null,null,"Aantal",null,"Prijs /stuk",null,"Aantal",null,"Prijs /stuk"]
[null,"Fietsroutekaart Van Gogh fietsroute Helvoirt/'sHertogenbosch",null,null,null,null,null,null,null,null,null,null,null,null,null,null,null,{"$f":"L61*Gewicht!B36","v":0},null,{"$f":"L61*Prijslijst!G36","v":0},null,null,"10 t/m 24 stuks",null,2.8,null,"5 t/m 9 stuks",null,14]
[null,"Fietsroutekaart Van Gogh fietsroute Eindhoven / Nuenen",null,null,null,null,null,null,null,null,null,null,null,null,null,null,null,{"$f":"L62*Gewicht!B37","v":0},null,{"$f":"L62*Prijslijst!G37","v":0},null,null,"25 t/m 49 stuks",null,2.65,null,"10 stuks of meer",null,13.5]
[null,"Van Gogh fietsroute totaal",null,null,null,null,null,null,null,null,null,{"$f":"IFERROR(SUM(L58:L62),0)","v":0},{"$f":"_xlfn.IFS(L63<10,0,AND(L63>=10,L63<=24),Prijslijst!B33,AND(L63>=25,L63<=49),Prijslijst!C33,L63>=50,Prijslijst!D33)","v":0},{"$f":"L63*M63","v":0},null,null,null,null,null,null,null,null,"50 stuks of meer",null,2.5]
[null,null,null,null,null,null,null,null,null,null,"Minimale bestelhoeveelheid 10 stuks"]
[null,"Van Gogh fietsroute cadeaubox",null,null,null,null,null,null,null,null,null,null,{"$f":"_xlfn.IFS(L65<5,0,AND(L65>=5,L65<=9),Prijslijst!B39,L65>=10,Prijslijst!C39)","v":0},{"$f":"L65*M65","v":0},null,null,null,{"$f":"L65*Gewicht!B39","v":0},null,{"$f":"L65*Prijslijst!G39","v":0}]
[null,"Meer…",null,null,null,null,null,null,null,null,"Minimale bestelhoeveelheid 5 stuks"]
[]
[null,"Van Gogh wandelroute"]
[null,"Wandelkaart VGNP route Nuenen",null,null,null,null,null,null,null,null,null,null,null,null,null,null,null,{"$f":"L69*Gewicht!B41","v":0},null,{"$f":"L69*Prijslijst!G46","v":0}]
[null,"Wandelkaart VGNP route Zundert",null,null,null,null,null,null,null,null,null,null,null,null,null,null,null,{"$f":"L70*Gewicht!B41","v":0},null,{"$f":"L70*Prijslijst!G46","v":0},null,null,"Van Gogh wandelroute"]
[null,"Wandelkaart VGNP route Etten-Leur",null,null,null,null,null,null,null,null,null,null,null,null,null,null,null,{"$f":"L71*Gewicht!B41","v":0},null,{"$f":"L71*Prijslijst!G46","v":0},null,null,"Aantal",null,"Prijs /stuk"]
[null,"Wandelkaart VGNP route Helvoirt",null,null,null,null,null,null,null,null,null,null,null,null,null,null,null,{"$f":"L72*Gewicht!B41","v":0},null,{"$f":"L72*Prijslijst!G46","v":0},null,null,"10 t/m 24 stuks",null,2]
[null,"Wandelkaart VGNP route Tilburg",null,null,null,null,null,null,null,null,null,null,null,null,null,null,null,{"$f":"L73*Gewicht!B41","v":0},null,{"$f":"L73*Prijslijst!G46","v":0},null,null,"25 t/m 49 stuks",null,1.9]
[null,"Van Gogh wandelroute totaal",null,null,null,null,null,null,null,null,null,{"$f":"IFERROR(SUM(L69:L73),0)","v":0},{"$f":"_xlfn.IFS(L74<10,0,AND(L74>=10,L74<=24),Prijslijst!B46,AND(L74>=25,L74<=49),Prijslijst!C46,L74>=50,Prijslijst!D46)","v":0},{"$f":"L74*M74","v":0},null,null,null,null,null,null,null,null,"50 stuks of meer",null,1.8]
[null,"Meer…",null,null,null,null,null,null,null,null,"Minimale bestelhoeveelheid 10 stuks"]
[]
[null,"Zuiderwaterlinie wandelgids",null,null,null,null,null,null,null,null,null,null,{"$f":"_xlfn.IFS(L77<10,0,AND(L77>=10,L77<=24),Prijslijst!B41,L77>=25,Prijslijst!C41)","v":0},{"$f":"L77*M77","v":0},null,null,null,{"$f":"L77*Gewicht!B43","v":0},null,{"$f":"L77*Prijslijst!G41","v":0},null,null,"Zuiderwaterlinie wandelgids",null,null,null,"Linie 1629 fietsroute"]
[null,null,null,null,null,null,null,null,null,null,"Minimale bestelhoeveelheid 10 stuks",null,null,null,null,null,null,null,null,null,null,null,"Aantal",null,"Prijs /stuk",null,"Aantal",null,"Prijs /stuk"]
[null,null,null,null,null,null,null,null,null,null,null,null,null,null,null,null,null,null,null,null,null,null,"10 t/m 24 stuks",null,6,null,"10 t/m 24 stuks",null,2.8]
[null,"Linie 1629 Fietsroute",null,null,null,null,null,null,null,null,null,null,{"$f":"_xlfn.IFS(L80<10,0,AND(L80>=10,L80<=24),Prijslijst!B43,AND(L80>=25,L80<=49),Prijslijst!C43,L80>=50,Prijslijst!D43)","v":0},{"$f":"L80*M80","v":0},null,null,null,{"$f":"L80*Gewicht!B44","v":0},null,{"$f":"L80*Prijslijst!G43","v":0},null,null,"25 stuks of meer",null,5.5,null,"25 t/m 49 stuks",null,2.65]
[null,null,null,null,null,null,null,null,null,null,"Minimale bestelhoeveelheid 10 stuks",null,null,null,null,null,null,null,null,null,null,null,null,null,null,null,"50 stuks of meer",null,2.5]
[]
[null,"Kloosterrondwandelingen"]
[null,"Wandelkaart Abdij van Berne in Heeswijk-Dinther",null,null,null,null,null,null,null,null,null,null,null,null,null,null,null,{"$f":"L84*Gewicht!B47","v":0},null,{"$f":"L84*Prijslijst!G49","v":0}]
[null,"Wandelkaart clarissen- en franciscanenklooster in Megen",null,null,null,null,null,null,null,null,null,null,null,null,null,null,null,{"$f":"L85*Gewicht!B48","v":0},null,{"$f":"L85*Prijslijst!G50","v":0},null,null,"Kloosterrondwandelingen"]
[null,"Wandelkaart Missieklooster Heilig Bloed in Aarle-Rixtel",null,null,null,null,null,null,null,null,null,null,null,null,null,null,null,{"$f":"L86*Gewicht!B49","v":0},null,{"$f":"L86*Prijslijst!G51","v":0},null,null,"Aantal",null,"Prijs /stuk"]
[null,"Wandelkaart Karmelklooster in Boxmeer",null,null,null,null,null,null,null,null,null,null,null,null,null,null,null,{"$f":"L87*Gewicht!B50","v":0},null,{"$f":"L87*Prijslijst!G52","v":0},null,null,"10 t/m 24 stuks",null,2]
[null,"Wandelkaart Abdij Maria Refugie in Uden",null,null,null,null,null,null,null,null,null,null,null,null,null,null,null,{"$f":"L88*Gewicht!B51","v":0},null,{"$f":"L88*Prijslijst!G53","v":0},null,null,"25 t/m 49 stuks",null,1.9]
[null,"Wandelkaart drie-eenheid in Velp",null,null,null,null,null,null,null,null,null,null,null,null,null,null,null,{"$f":"L89*Gewicht!B52","v":0},null,{"$f":"L89*Prijslijst!G54","v":0},null,null,"50 stuks of meer",null,1.8]
[null,"Wandelkaart pelgrimshoeve Kafarnaum in Vessem",null,null,null,null,null,null,null,null,null,null,null,null,null,null,null,{"$f":"L90*Gewicht!B53","v":0},null,{"$f":"L90*Prijslijst!G55","v":0}]
[null,"Wandelkaart Kloosterhotel ZIN in Vught",null,null,null,null,null,null,null,null,null,null,null,null,null,null,null,{"$f":"L91*Gewicht!B54","v":0},null,{"$f":"L91*Prijslijst!G56","v":0}]
[null,"Wandelkaart bedevaartsoord Handel en Huize Padua in Boekel",null,null,null,null,null,null,null,null,null,null,null,null,null,null,null,{"$f":"L92*Gewicht!B55","v":0},null,{"$f":"L92*Prijslijst!G57","v":0}]
[null,"Wandelkaart Klooster Nazareth in Oirschot",null,null,null,null,null,null,null,null,null,null,null,null,null,null,null,{"$f":"L93*Gewicht!B56","v":0},null,{"$f":"L93*Prijslijst!G58","v":0}]
[null,"Wandelkaart De Achelse Kluis in Hamont-Achel / De Groote Heide"]
[null,"Wandelkaart Kruisherenklooster in Sint Agatha",null,null,null,null,null,null,null,null,null,null,null,null,null,null,null,{"$f":"L95*Gewicht!B56","v":0},null,{"$f":"L95*Prijslijst!G58","v":0}]
[null,"Wandelkaart Tilburg",null,null,null,null,null,null,null,null,null,null,null,null,null,null,null,{"$f":"L96*Gewicht!B57","v":0},null,{"$f":"L96*Prijslijst!G59","v":0}]
[null,"Kloosterrondwandelingen totaal",null,null,null,null,null,null,null,null,null,{"$f":"SUM(L84:L96)","v":0},{"$f":"_xlfn.IFS(L97<10,0,AND(L97>=10,L97<=24),Prijslijst!B58,AND(L97>=25,L97<=49),Prijslijst!C58,L97>=50,Prijslijst!D58)","v":0},{"$f":"L97*M97","v":0}]
[null,"Meer…",null,null,null,null,null,null,null,null,"Minimale bestelhoeveelheid 10 stuks"]
[]
[null,null,null,null,null,null,null,null,null,null,null,null,null,{"$f":"SUM(N28:N97)","v":0},"Subtotaal",null,null,{"$f":"SUM(R28:R77)","v":0.25},null,{"$f":"SUM(T17:T96)","v":0}]
[null,null,null,null,null,null,null,{"$f":"_xlfn.IFS(U101=3,\"Verzendkosten worden additioneel doorbelast\")","v":{"$error":"#N/A"}},null,null,null,null,null,{"$f":"_xlfn.IFS(AND(U101=1,V101=1),7.25,AND(U101=1,V101=2),13.5,AND(U101=1,V101=3),27,AND(U101=2,V101=1),14.5,AND(U101=2,V101=2),27,AND(U101=2,V101=3),50,U101=3,0)","v":7.25},"Verzend- en handlingkosten",null,null,null,null,null,{"$f":"_xlfn.IFS(L8=\"Nederland\",1,L8=\"Belgie\",2,L8=\"Overig\",3)","v":1},{"$f":"_xlfn.IFS(R100<10000,1,AND(R100>=10000,R100<=23000),2,R100>=23000,3)","v":1}]
[null,null,null,null,null,null,null,null,null,null,null,null,null,{"$f":"N100+N101","v":7.25},"Totaal (exclusief BTW)"]
[null,null,null,null,null,null,null,null,null,null,null,null,null,{"$f":"N102*0.21","v":1.5225},"BTW (21%)"]
[null,null,null,null,null,null,null,null,null,null,null,null,null,{"$f":"N102+N103","v":8.7725000000000009},"Totaal (inclusief BTW)"]
[]
[null,"Interessant, met deze bestelling genereer je, bij verkoop voor de consumentenadviesprijs, een omzet van:"]
[null,null,null,null,null,null,null,null,null,null,null,null,null,{"$f":"T100","v":0}]
[]
[null,"Bedankt voor het invullen van het bestelformulier! Sla het bestelformulier, als excelfile, op je computer op. "]
[null,"En mail het vervolgens als bijlage naar info@routesinbrabant.nl"]
[]
[null,"Wij gaan je bestelling in orde maken. Je ontvangt een mailbevestiging van ons. Bestellingen worden één keer per week verzonden."]
[null,"Heb je nog vragen of opmerkingen? Vermeld deze in je email of neem telefonisch contact met ons op. "]
[]
[]
[null,"VisitBrabant Routebureau"]
[null,"E: info@routesinbrabant.nl"]
[null,"T: 0800 405 00 50"]
[null,"I: visitbrabantcom/partners"]

{"sheet":"Totaal","index":1,"n_rows":3,"n_cols":65,"rows_kept":3,"cut":false,"hidden":true,"merged":[[0,42,0,46],[0,49,0,60],[0,11,0,14],[0,15,0,22],[0,23,0,24],[0,26,0,34],[0,36,0,41]]}
[null,"Besteldatum","Naam organisatie","Contactpersoon","Adres","Postcode","Plaats","Land","E-mailadres","Factuur e-mailadres","Telefoonnummer","Fietskaart",null,null,null,"Wandelkaart",null,null,null,null,null,null,null,"Actie",null,null,"Liberation Route ",null,null,null,null,null,null,null,null,null,"Van Gogh fietsroute",null,null,null,null,null,"Van Gogh wandelroute",null,null,null,null,"Zuiderwaterlinie",null,"Kloosterrondwandelingen",null,null,null,null,null,null,null,null,null,null,null,"Totaalprijs","Totaalprijs","Gefactureerd","Opmerkingen"]
[null,null,null,null,null,null,null,null,null,null,null,"West","Midden","Noordoost","Zuidoost","West-Brabantse Wal","West-Baronie","West-Biesbosch","Midden","Noordoost-Hertogenbosch","Noordoost-Land van Cuijk","Zuidoost-Eindhoven","Zuidoost-De Groote Heide","Aantal extra","welke","Display","Bergen op Zoom","Breda","Gilze-Rijen","Vught","Son en Breugel","Bergeijk","Landerd","Asten","Giftbox","Wandelen","Zundert","Etten-Leur","Breda/Tilburg","Helvoirt/Den Bosch","Eindhove/Nuenen","Giftbox","Nuenen","Zundert","Etten-Leur","Helvoirt","Tilburg","wandelgids","Linie 1926","Heeswijk","Megen","Aarle-Rixtel","Boxmeer","Uden","Velp","Vessem","Vught","Handel","Oirschot","Tilburg","Sint Agata","(exclusief BTW)","(inclusief BTW)"]
[null,{"$f":"Bestelformulier!L12","v":"2022-09-05"},{"$f":"Bestelformulier!E8","v":0},{"$f":"Bestelformulier!E9","v":0},{"$f":"Bestelformulier!E10","v":0},{"$f":"Bestelformulier!E11","v":0},{"$f":"Bestelformulier!E12","v":0},{"$f":"Bestelformulier!L8","v":"Nederland"},{"$f":"Bestelformulier!L9","v":0},{"$f":"Bestelformulier!L10","v":0},{"$f":"Bestelformulier!L11","v":0},{"$f":"Bestelformulier!L17","v":0},{"$f":"Bestelformulier!L18","v":0},{"$f":"Bestelformulier!L19","v":0},{"$f":"Bestelformulier!L20","v":0},{"$f":"Bestelformulier!L21","v":0},{"$f":"Bestelformulier!L22","v":0},{"$f":"Bestelformulier!L23","v":0},{"$f":"Bestelformulier!L24","v":0},{"$f":"Bestelformulier!L25","v":0},{"$f":"Bestelformulier!L26","v":0},{"$f":"Bestelformulier!L27","v":0},{"$f":"Bestelformulier!L28","v":0},null,null,null,{"$f":"Bestelformulier!L42","v":0},{"$f":"Bestelformulier!L43","v":0},{"$f":"Bestelformulier!L44","v":0},{"$f":"Bestelformulier!L45","v":0},{"$f":"Bestelformulier!L46","v":0},{"$f":"Bestelformulier!L47","v":0},{"$f":"Bestelformulier!L48","v":0},{"$f":"Bestelformulier!L49","v":0},{"$f":"Bestelformulier!L52","v":0},{"$f":"Bestelformulier!L54","v":0},{"$f":"Bestelformulier!L58","v":0},{"$f":"Bestelformulier!L59","v":0},{"$f":"Bestelformulier!L60","v":0},{"$f":"Bestelformulier!L61","v":0},{"$f":"Bestelformulier!L62","v":0},{"$f":"Bestelformulier!L65","v":0},{"$f":"Bestelformulier!L69","v":0},{"$f":"Bestelformulier!L70","v":0},{"$f":"Bestelformulier!L71","v":0},{"$f":"Bestelformulier!L72","v":0},{"$f":"Bestelformulier!L73","v":0},{"$f":"Bestelformulier!L77","v":0},{"$f":"Bestelformulier!L80","v":0},{"$f":"Bestelformulier!L84","v":0},{"$f":"Bestelformulier!L85","v":0},{"$f":"Bestelformulier!L86","v":0},{"$f":"Bestelformulier!L87","v":0},{"$f":"Bestelformulier!L88","v":0},{"$f":"Bestelformulier!L89","v":0},{"$f":"Bestelformulier!L90","v":0},{"$f":"Bestelformulier!L91","v":0},{"$f":"Bestelformulier!L92","v":0},{"$f":"Bestelformulier!L93","v":0},{"$f":"Bestelformulier!L96","v":0},{"$f":"Bestelformulier!#REF!","v":{"$error":"#REF!"}},{"$f":"Bestelformulier!N102","v":7.25},{"$f":"Bestelformulier!N104","v":8.7725000000000009},"nee"]

{"sheet":"Factuur","index":2,"n_rows":46,"n_cols":12,"rows_kept":46,"cut":false,"hidden":true,"merged":[]}
[null,"Formulier bij een opdracht tot facturering"]
[]
[null,"Project: ",null,6116,null,"Deelproject / projectfase : ",null,null,null,104]
[]
[null,"Factuur is bestemd voor: "]
[]
[null,"Organisatie: ",null,null,null,{"$f":"Bestelformulier!E8","v":0}]
[]
[null,"T.a.v. contactpersoon: ",null,null,null,{"$f":"Bestelformulier!E9","v":0}]
[]
[null,"Mailadres factuur: ",null,null,null,{"$f":"Bestelformulier!L10","v":0}]
[null,"(facturen worden altijd per mail verzonden)"]
[]
[null,"Besteldatum: "]
[]
[null,"Omschrijving op de factuur: "]
[]
[null,null,null,null,null,null,null,null,null,"Aantal","Prijs/stuk","Totaal prijs"]
[]
[null,"Fiets- en wandelkaarten totaal",null,null,null,null,null,null,null,{"$f":"Bestelformulier!L32","v":0},{"$f":"Bestelformulier!M32","v":"0"},{"$f":"J20*K20","v":0}]
[null,"Liberation Route Brabant fietskaarten",null,null,null,null,null,null,null,{"$f":"Bestelformulier!L50","v":0},{"$f":"Bestelformulier!M50","v":0},{"$f":"J21*K21","v":0}]
[null,"Liberation Route Brabant giftbox",null,null,null,null,null,null,null,{"$f":"Bestelformulier!L52","v":0},{"$f":"Bestelformulier!M52","v":0},0]
[null,"Liberation Route wandelkaart",null,null,null,null,null,null,null,{"$f":"Bestelformulier!L54","v":0},{"$f":"Bestelformulier!M54","v":0},{"$f":"J23*K23","v":0}]
[null,"Van Gogh fietsroute kaarten",null,null,null,null,null,null,null,{"$f":"Bestelformulier!L63","v":0},{"$f":"Bestelformulier!M63","v":0},0]
[null,"Van Gogh fietsroute cadeaubox",null,null,null,null,null,null,null,{"$f":"Bestelformulier!L65","v":0},{"$f":"Bestelformulier!M65","v":0},0]
[null,"Van Gogh wandelroute kaarten",null,null,null,null,null,null,null,{"$f":"Bestelformulier!L74","v":0},{"$f":"Bestelformulier!M74","v":0},0]
[null,"Zuiderwaterlinie wandelgids",null,null,null,null,null,null,null,{"$f":"Bestelformulier!L77","v":0},{"$f":"Bestelformulier!M77","v":0},0]
[null,"Linie 1629 Fietsroute",null,null,null,null,null,null,null,{"$f":"Bestelformulier!L80","v":0},{"$f":"Bestelformulier!M80","v":0},{"$f":"J28*K28","v":0}]
[null,"Kloosterrondwandelingen",null,null,null,null,null,null,null,{"$f":"Bestelformulier!L97","v":0},{"$f":"Bestelformulier!M97","v":0},{"$f":"J29*K29","v":0}]
[]
[null,"Verzend- en handlingkosten",null,null,null,null,null,null,null,null,null,{"$f":"Bestelformulier!N101","v":7.25}]
[]
[]
[null,"Totale bedragen "]
[]
[null,"Bedrag excl. BTW: ",null,null,null,null,null,null,null,null,null,{"$f":"Bestelformulier!N102","v":7.25}]
[null,"BTW bedrag",null,null,null,null,null,null,null,null,null,{"$f":"Bestelformulier!N103","v":1.5225}]
[null,"Bedrag incl. BTW: ",null,null,null,null,null,null,null,null,null,{"$f":"Bestelformulier!N104","v":8.7725000000000009}]
[]
[null,"Ingevuld door: ",null,null,null,null,null,null,null,"Datum:"]
[]
[null,null,null,"Per mail aanleveren bij : Judithvriens@visitbrabant.com"]
[]
[null,"In te vullen door administratie:"]
[null,"Grootboek:"]
[null,"Debiteur:"]

{"sheet":"Pakbon","index":3,"n_rows":72,"n_cols":12,"rows_kept":72,"cut":false,"hidden":true,"merged":[[4,4,4,6],[5,4,5,6],[6,4,6,6],[7,4,7,6],[8,4,8,6],[4,11,4,13],[5,11,5,13],[6,11,6,13],[7,11,7,13],[8,11,8,13]]}
[null,"Pakbon"]
[]
[null,"Verzendadres"]
[]
[null,"Naam organisatie",null,null,"test1",null,null,null,"Land",null,null,"Nederland"]
[null,"Contactpersoon",null,null,"test2",null,null,null,"E-mailadres",null,null,"test5"]
[null,"Adres",null,null,"test3",null,null,null,"Factuur e-mailadres"]
[null,"Postcode",null,null,"test4",null,null,null,"Telefoonnummer"]
[null,"Plaats",null,null,"test5",null,null,null,"Besteldatum",null,null,{"$f":"TODAY()","v":"2022-09-05"}]
[]
[]
[null,"Hierbij ontvangt u onderstaande bestelling"]
[]
[null,"Fiets- en wandelkaarten"]
[null,"Fietskaart West-Brabant"]
[null,"Fietskaart Midden-Brabant",null,null,null,null,null,null,null,null,null,50]
[null,"Fietskaart Noordoost-Brabant"]
[null,"Fietskaart Zuidoost-Brabant"]
[null,"Wandelkaart Brabant West - o.a. Brabantse Wal en Bergen op Zoom"]
[null,"Wandelkaart Brabant West - o.a. De Baronie en Breda"]
[null,"Wandelkaart Brabant West - o.a. De Biesbosch en het Land van Heusden"]
[null,"Wandelkaart Brabant Midden - o.a. Tilburg en Loonse en Drunense Duinen"]
[null,"Wandelkaart Brabant Noordoost - o.a. 's-Hertogenbosch en De Maashorst"]
[null,"Wandelkaart Brabant Noordoost - o.a. Land van Cuijk"]
[null,"Wandelkaart Brabant Zuidoost - o.a. Eindhoven, Helmond en De Peel"]
[null,"Wandelkaart Brabant Zuidoost - o.a. De Groote Heide en De Kempen"]
[]
[null,"Liberation Route Brabant"]
[null,"Liberation Route Brabant fietsroute Bergen op Zoom"]
[null,"Liberation Route Brabant fietsroute Breda"]
[null,"Liberation Route Brabant fietsroute Gilze-Rijen"]
[null,"Liberation Route Brabant fietsroute Vught",null,null,null,null,null,null,null,null,null,20]
[null,"Liberation Route Brabant fietsroute Son en Breugel"]
[null,"Liberation Route Brabant fietsroute Bergeijk"]
[null,"Liberation Route Brabant fietsroute Landerd"]
[null,"Liberation Route Brabant fietsroute Asten"]
[]
[null,"Liberation Route Brabant giftbox"]
[]
[null,"Liberation Route Brabant wandelroute, Operatie Market Garden"]
[]
[null,"Van Gogh fietsroute"]
[null,"Fietsroutekaart Van Gogh fietsroute Zundert"]
[null,"Fietsroutekaart Van Gogh fietsroute Etten-Leur"]
[null,"Fietsroutekaart Van Gogh fietsroute Breda/Tilburg"]
[null,"Fietsroutekaart Van Gogh fietsroute Helvoirt/'sHertogenbosch"]
[null,"Fietsroutekaart Van Gogh fietsroute Eindhoven / Nuenen"]
[]
[null,"Van Gogh fietsroute cadeaubox"]
[]
[null,"Van Gogh wandelroute"]
[null,"Wandelkaart VGNP route Nuenen"]
[null,"Wandelkaart VGNP route Zundert"]
[null,"Wandelkaart VGNP route Etten-Leur"]
[]
[null,"Zuiderwaterlinie wandelgids"]
[]
[null,"Linie 1629 Fietsroute"]
[]
[null,"Kloosterrondwandelingen"]
[null,"Wandelkaart Abdij van Berne in Heeswijk-Dinther"]
[null,"Wandelkaart clarissen- en franciscanenklooster in Megen"]
[null,"Wandelkaart Missieklooster Heilig Bloed in Aarle-Rixtel"]
[null,"Wandelkaart Karmelklooster in Boxmeer"]
[null,"Wandelkaart Abdij Maria Refugie in Uden"]
[null,"Wandelkaart drie-eenheid in Velp"]
[null,"Wandelkaart pelgrimshoeve Kafarnaum in Vessem"]
[null,"Wandelkaart Kloosterhotel ZIN in Vught"]
[null,"Wandelkaart bedevaartsoord Handel en Huize Padua in Boekel"]
[null,"Wandelkaart Klooster Nazareth in Oirschot"]
[null,"Wandelkaart De Achelse Kluis in Hamont-Achel / De Groote Heide"]
[null,"Wandelkaart Kruisherenklooster in Sint Agatha"]

{"sheet":"Prijslijst","index":4,"n_rows":87,"n_cols":7,"rows_kept":87,"cut":false,"hidden":true,"merged":[]}
["Prijslijst Ondernemers"]
[null,"25-99 stuks","100-249 stuks","250 -499 stuks",">500 stuks",null,"Consumenten verkoopprijs"]
["Fietskaarten"]
["Fietskaart West-Brabant",3.9,3.8,3.65,3.4,null,5.95]
["Fietskaart Midden-Brabant",3.9,3.8,3.65,3.4,null,5.95]
["Fietskaart Noordoost-Brabant",3.9,3.8,3.65,3.4,null,5.95]
["Fietskaart Zuidoost-Brabant",3.9,3.8,3.65,3.4,null,5.95]
[]
["Wandelkaarten"]
["Wandelkaart Brabant West - o.a. Brabantse Wal en Bergen op Zoom",2.93,2.85,2.74,2.5499999999999998,null,5.95]
["Wandelkaart Brabant West - o.a. De Baronie en Breda",2.93,2.85,2.74,2.5499999999999998,null,5.95]
["Wandelkaart",2.93,2.85,2.74,2.5499999999999998,null,5.95]
["Wandelkaart",2.93,2.85,2.74,2.5499999999999998,null,5.95]
["Wandelkaart",2.93,2.85,2.74,2.5499999999999998,null,5.95]
["Wandelkaart",2.93,2.85,2.74,2.5499999999999998,null,5.95]
["Wandelkaart",2.93,2.85,2.74,2.5499999999999998,null,5.95]
["Wandelkaart",2.93,2.85,2.74,2.5499999999999998,null,5.95]
[]
["Liberation Route Brabant","10 t/m 24 stuks","25 t/m 49",">50 stuks"]
["Liberation Route Brabant fietsroute Bergen op Zoom",2,1.9,1.8,null,null,2.95]
["Liberation Route Brabant fietsroute Breda",2,1.9,1.8,null,null,2.95]
["Liberation Route Brabant fietsroute Gilze-Rijen",2,1.9,1.8,null,null,2.95]
["Liberation Route Brabant fietsroute Vught",2,1.9,1.8,null,null,2.95]
["Liberation Route Brabant fietsroute Son en Breugel",2,1.9,1.8,null,null,2.95]
["Liberation Route Brabant fietsroute Bergeijk",2,1.9,1.8,null,null,2.95]
["Liberation Route Brabant fietsroute Landerd",2,1.9,1.8,null,null,2.95]
["Liberation Route Brabant fietsroute Asten",2,1.9,1.8,null,null,2.95]
[null,"5 stuks","10 stuks"]
["Liberation Route Brabant giftbox",14,13.5,null,null,null,19.440000000000001]
["Liberation Route wandelroute Operatie Market Garden",2.8,2.65,2.5,null,null,3.95]
[]
["Van Gogh fietsroute","10 t/m 24 stuks","25 t/m 49",">50 stuks"]
["Fietsroutekaart Van Gogh fietsroute Zundert",2.8,2.65,2.5,null,null,3.95]
["Fietsroutekaart Van Gogh fietsroute Etten-Leur",2.8,2.65,2.5,null,null,3.95]
["Fietsroutekaart Van Gogh fietsroute Breda/Tilburg",2.8,2.65,2.5,null,null,3.95]
["Fietsroutekaart Van Gogh fietsroute Helvoirt/'sHertogenbosch",2.8,2.65,2.5,null,null,3.95]
["Fietsroutekaart Van Gogh fietsroute Eindhoven / Nuenen",2.8,2.65,2.5,null,null,3.95]
[null,"5 stuks","10 stuks"]
["Van Gogh fietsroute cadeaubox",14,13.5,null,null,null,19.95]
[null,"10 stuks","25 stuks"]
["Zuiderwaterlinie wandelgids",6,5.5,null,null,null,8.9499999999999993]
[]
["Linie 1629 fietsroute",2.8,2.65,2.5,null,null,3.95]
[]
["Van Gogh wandelroute","10 t/m 24 stuks","25 t/m 49",">50 stuks"]
["Van Gogh wandelroute ",2,1.9,1.8,null,null,2.95]
[]
["Kloosterrondwandelingen","10 t/m 24 stuks","25 t/m 49",">50 stuks"]
["Wandelkaart clarissen- en franciscanenklooster in Megen",2,1.9,1.8,null,null,2.95]
["Wandelkaart Abdij van Berne in Heeswijk-Dinther",2,1.9,1.8,null,null,2.95]
["Wandelkaart Missieklooster Heilig Bloed in Aarle-Rixtel",2,1.9,1.8,null,null,2.95]
["Wandelkaart Karmelklooster in Boxmeer",2,1.9,1.8,null,null,2.95]
["Wandelkaart Abdij Maria Refugie in Uden",2,1.9,1.8,null,null,2.95]
["Wandelkaart drie-eenheid in Velp",2,1.9,1.8,null,null,2.95]
["Wandelkaart pelgrimshoeve Kafarnaum in Vessem",2,1.9,1.8,null,null,2.95]
["Wandelkaart Kloosterhotel ZIN in Vught",2,1.9,1.8,null,null,2.95]
["Wandelkaart Handel",2,1.9,1.8,null,null,2.95]
["Wandelkaart Oirschot",2,1.9,1.8,null,null,2.95]
["Wandelkaart Tilburg",2,1.9,1.8,null,null,2.95]
["Wandelkaart Sint Agatha",2,1.9,1.8,null,null,2.95]
[]
["Ik maak graag gebruik van de actie gratis kaartendisplay","ja"]
[null,"nee"]
[]
["Land","Nederland"]
[null,"Belgie"]
[null,"Overig"]
[]
["Giftbox",5]
[null,10]
[]
["ZWL Gids",10]
[null,25]
[]
[]
["Fietskaart West-Brabant"]
["Fietskaart Midden-Brabant"]
["Fietskaart Noordoost-Brabant"]
["Fietskaart Zuidoost-Brabant"]
["Wandelkaart Brabant West - o.a. Brabantse Wal en Bergen op Zoom"]
["Wandelkaart Brabant West - o.a. De Baronie en Breda"]
["Wandelkaart Brabant West - o.a. De Biesbosch en het Land van Heusden"]
["Wandelkaart Brabant Midden - o.a. Tilburg en Loonse en Drunense Duinen"]
["Wandelkaart Brabant Noordoost - o.a. 's-Hertogenbosch en De Maashorst"]
["Wandelkaart Brabant Noordoost - o.a. Land van Cuijk"]
["Wandelkaart Brabant Zuidoost - o.a. Eindhoven en Strabrechtse Heide"]
["Wandelkaart Brabant Zuidoost - o.a. De Groote Heide en De Kempen"]

{"sheet":"Gewicht","index":5,"n_rows":68,"n_cols":3,"rows_kept":68,"cut":false,"hidden":true,"merged":[]}
["Gewichten"]
[null,"gewicht (gram)"]
["Fietskaarten"]
["Fietskaart West-Brabant",53]
["Fietskaart Midden-Brabant",38]
["Fietskaart Noordoost-Brabant",45]
["Fietskaart Zuidoost-Brabant",53]
[]
["Wandelkaarten"]
["Wandelkaart Brabant West - o.a. Brabantse Wal en Bergen op Zoom",61]
["Wandelkaart Brabant West - o.a. De Baronie en Breda",61]
["Wandelkaart Brabant West - o.a. De Biesbosch en het Land van Heusden",62]
["Wandelkaart Brabant Midden - o.a. Tilburg en Loonse en Drunense Duinen",60]
["Wandelkaart brabant Noordoost - o.a. 's-Hertogenbosch en De Maashorst",73]
["Wandelkaart Brabant Noordoost - o.a. Land van Cuijk",62]
["Wandelkaart Brabant Zuidoost - o.a. Eindhoven en Strabrechtse Heide",61]
["Wandelkaart Brabant Zuidoost - o.a. De Groote Heide en De Kempen",62]
[]
["Liberation Route Brabant"]
["Liberation Route Brabant fietsroute Bergen op Zoom",27]
["Liberation Route Brabant fietsroute Breda",27]
["Liberation Route Brabant fietsroute Gilze-Rijen",27]
["Liberation Route Brabant fietsroute Vught",27]
["Liberation Route Brabant fietsroute Son en Breugel",27]
["Liberation Route Brabant fietsroute Bergeijk",27]
["Liberation Route Brabant fietsroute Landerd",27]
["Liberation Route Brabant fietsroute Asten",27]
[]
["Liberation Route Brabant giftbox",265]
["Liberation Route Brabant wandelkaart",50]
[]
["Van Gogh fietsroute"]
["Fietsroutekaart Van Gogh fietsroute Zundert",38]
["Fietsroutekaart Van Gogh fietsroute Etten-Leur",38]
["Fietsroutekaart Van Gogh fietsroute Breda/Tilburg",38]
["Fietsroutekaart Van Gogh fietsroute Helvoirt/'sHertogenbosch",38]
["Fietsroutekaart Van Gogh fietsroute Eindhoven / Nuenen",38]
[]
["Van Gogh fietsroute cadeaubox",263]
[]
["Van Gogh wandelroute ",38]
[]
["Zuiderwaterlinie wandelgids",266]
["Linie 1629",50]
[]
["Kloosterrondwandelingen"]
["Wandelkaart clarissen- en franciscanenklooster in Megen",27]
["Wandelkaart Abdij van Berne in Heeswijk-Dinther",27]
["Wandelkaart Missieklooster Heilig Bloed in Aarle-Rixtel",27]
["Wandelkaart Karmelklooster in Boxmeer",27]
["Wandelkaart Abdij Maria Refugie in Uden",27]
["Wandelkaart drie-eenheid in Velp",27]
["Wandelkaart pelgrimshoeve Kafarnaum in Vessem",27]
["Wandelkaart Kloosterhotel ZIN in Vught",27]
["Wandelkaart Handel",27]
["Wandelkaart Oirschot",27]
["Wandelkaart Tilburg",27]
["Wandelkaart Sint Agatha",27]
[]
[]
["Nederland"]
["t/m",10000,23000]
["Verzendkosten",7.25,13.5]
[]
["Belgie",10000,23000]
[null,15,30]
[]
["Overig","Contact","Contact"]